bitfinex/quotes_ETHUSD_20250329
["timestamp","ask_amount","ask_price","bid_price","bid_amount"]
[1743271005051,3.0,1822.7,1822.2,7.230029]
[1743271005352,3.0,1822.7,1822.3,5.48756]
[1743271006036,3.55,1822.7,1822.0,0.7913]
[1743271006236,3.0,1822.4,1822.1,6.445]
[1743271006743,5.48698,1822.5,1822.1,6.445]
[1743271006948,8.48727,1822.4,1822.1,6.445]
[1743271007313,3.0,1822.4,1822.1,6.445]
[1743271007716,5.48696,1822.5,1822.1,6.445]
[1743271007951,3.55,1822.6,1822.2,5.48767]
[1743271008153,5.4869,1822.6,1822.1,11.93313]
[1743271008457,3.0,1822.7,1822.2,6.681143]
[1743271008762,5.4861,1822.8,1822.2,6.681143]
[1743271008763,5.4861,1822.8,1822.3,5.48746]
[1743271009068,3.0,1822.7,1822.4,0.7913]
[1743271009219,8.48639,1822.7,1822.4,0.7913]
[1743271009554,5.48731,1822.4,1822.1,6.445]
[1743271010131,5.48789,1822.2,1822.0,6.444]
[1743271010666,5.48817,1822.1,1821.7,29.8378]
[1743271010822,5.48817,1822.1,1821.9,6.443]
[1743271011360,5.48919,1821.8,1821.5,0.7798]
[1743271011530,5.48937,1821.7,1821.6,6.443]
[1743271011730,8.48937,1821.7,1821.6,6.443]
[1743271012240,9.03937,1821.7,1821.3,7.2228]
[1743271012418,9.03937,1821.7,1821.3,0.7798]
[1743271012619,3.0,1821.7,1821.4,5.49016]
[1743271012819,3.0,1821.7,1821.3,13.340283]
[1743271013020,0.11377287,1821.6,1821.3,18.830683]
[1743271013216,5.49139,1821.1,1820.6,0.40918468]
[1743271013522,0.11182468,1821.0,1820.6,11.76485]
[1743271013721,0.11182468,1821.0,1820.6,0.7798]
[1743271013940,8.71002,1821.4,1820.8,5.49186]
[1743271014170,3.2197,1821.4,1820.9,5.49155]
[1743271014462,5.491,1821.2,1820.7,11.93538]
[1743271014645,5.49076,1821.3,1820.8,1.193538]
[1743271015226,10.98149,1821.3,1820.8,1.193538]
[1743271015442,0.11011334,1821.2,1820.8,1.193538]
[1743271016152,5.60110334,1821.2,1820.8,1.193538]
[1743271016353,0.11011334,1821.2,1820.8,6.685498]
[1743271017074,5.60100334,1821.2,1820.8,1.193538]
[1743271017281,5.49148,1821.1,1820.7,6.443]
[1743271017477,5.49148,1821.1,1820.7,6.49791812]
[1743271017478,5.49147,1821.1,1820.7,6.49791812]
[1743271017834,0.11011334,1821.0,1820.7,6.443]
[1743271018378,5.49209,1820.8,1820.6,0.7798]
[1743271018539,5.4921,1820.8,1820.6,7.2228]
[1743271018745,0.11011334,1820.7,1820.6,7.2228]
[1743271018937,0.11011334,1820.7,1820.6,6.443]
[1743271019350,0.11011334,1820.7,1820.5,6.443]
[1743271019964,5.60256334,1820.7,1820.5,6.443]
[1743271020129,0.11011334,1820.7,1820.3,6.444]
[1743271020334,3.0,1820.7,1820.3,12.6597]
[1743271020576,0.10326869,1820.6,1820.3,18.15305]
[1743271020775,8.49243,1820.7,1820.3,7.16638]
[1743271020955,0.10326869,1820.5,1820.3,7.16638]
[1743271021273,5.49302,1820.5,1820.4,6.444]
[1743271021437,0.10326869,1820.4,1820.3,7.16638]
[1743271021637,10.98251,1821.1,1820.6,5.49256]
[1743271021858,3.0,1821.0,1820.6,1.098555]
[1743271022040,5.4917,1821.0,1820.6,1.098555]
[1743271022249,5.4917,1821.0,1820.6,6.591245]
[1743271022454,5.4917,1821.0,1820.6,1.098555]
[1743271022650,10.98337,1821.0,1820.6,1.098555]
[1743271022877,5.49192,1820.9,1820.4,6.27304]
[1743271023445,5.49192,1820.9,1820.4,11.76617]
[1743271023632,5.49192,1820.9,1820.4,6.27293]
[1743271023973,5.49192,1820.9,1820.4,11.76606]
[1743271024388,12.17222767,1821.1,1820.4,0.7798]
[1743271024675,5.49169,1821.0,1820.5,5.49299]
[1743271024835,5.49174,1821.0,1820.5,0.627279]
[1743271025037,3.68087767,1821.1,1820.5,0.627279]
[1743271025237,5.49209,1820.8,1820.5,0.627279]
[1743271025475,5.49209,1820.8,1820.4,0.7798]
[1743271026061,5.4918,1820.9,1820.5,6.443]
[1743271026368,8.49122,1821.1,1820.5,11.99078404]
[1743271026681,8.49122,1821.1,1820.7,5.49224]
[1743271026682,3.0,1821.1,1820.7,5.49224]
[1743271027780,3.0,1821.1,1820.6,5.49268]
[1743271028080,8.49136,1821.1,1820.7,0.549268]
[1743271028386,13.98275,1821.1,1820.7,0.549268]
[1743271028578,3.0,1821.1,1820.7,6.041538]
[1743271028880,3.0,1821.2,1820.8,1.6168]
[1743271029053,8.49099,1821.2,1820.8,1.6168]
[1743271029247,9.39055767,1821.5,1821.0,5.49126]
[1743271029465,8.49057,1821.4,1821.0,6.443]
[1743271029666,13.98106,1821.4,1821.0,6.443]
[1743271029879,8.49049,1821.4,1821.0,6.443]
[1743271030035,5.4897,1821.6,1821.2,5.49075]
[1743271030241,5.4897,1821.6,1821.1,5.54606733]
[1743271030440,3.90057767,1821.7,1821.1,1.74804173]
[1743271030441,5.49046,1821.4,1821.1,1.74804173]
[1743271030735,5.49,1821.5,1821.0,11.93447]
[1743271030937,0.10540863,1821.4,1821.0,11.93437]
[1743271032001,0.10540863,1821.4,1821.1,5.54608522]
[1743271032223,0.10540863,1821.4,1821.2,5.49066]
[1743271032388,0.2197,1822.0,1821.5,5.48993]
[1743271032702,5.4888,1821.9,1821.6,6.442]
[1743271032916,3.68087767,1822.1,1821.6,13.54833]
[1743271033206,5.48757,1822.3,1821.7,5.4893]
[1743271033382,5.48787,1822.2,1821.6,13.54836]
[1743271033583,10.97595,1822.2,1821.7,5.48934]
[1743271033788,5.48787,1822.2,1821.6,15.452193]
[1743271034097,5.48787,1822.2,1821.7,5.48927]
[1743271034793,10.97601,1822.2,1821.7,5.48927]
[1743271035006,5.48817,1822.1,1821.6,8.0588]
[1743271035317,5.48817,1822.1,1821.6,14.35412]
[1743271035480,8.48788,1822.2,1821.7,5.48918]
[1743271035683,5.48817,1822.1,1821.6,14.35428]
[1743271035902,10.97655,1822.1,1821.6,14.35423]
[1743271036207,5.48851,1822.0,1821.6,14.35423]
[1743271036376,10.97662,1822.1,1821.6,14.35423]
[1743271036577,5.48848,1822.0,1821.6,8.86468]
[1743271036907,5.48923,1821.8,1821.3,7.10735]
[1743271037082,3.2197,1822.0,1821.5,5.48982]
[1743271037413,3.0,1822.0,1821.7,1.6168]
[1743271037580,3.0,1822.0,1821.7,7.1061]
[1743271037999,8.48851,1822.0,1821.7,1.6168]
[1743271038397,3.0,1822.0,1821.7,1.6168]
[1743271039808,8.48849,1822.0,1821.4,7.01878]
[1743271040001,8.48849,1822.0,1821.5,11.92897]
[1743271040208,5.48951,1821.7,1820.8,10.9458348]
[1743271040401,5.48999,1821.5,1821.3,6.439]
[1743271040600,5.49028,1821.4,1821.3,6.439]
[1743271040807,5.49076,1821.3,1820.9,6.439]
[1743271041326,10.98159,1821.3,1820.9,6.439]
[1743271041620,5.49089,1821.2,1820.9,6.439]
[1743271041784,3.0,1821.2,1820.9,6.438]
[1743271042115,8.49089,1821.2,1820.9,6.438]
[1743271042425,5.4912,1821.1,1820.9,6.438]
[1743271042612,5.4912,1821.1,1820.8,6.438]
[1743271042802,8.49088,1821.2,1820.8,6.438]
[1743271042803,5.49149,1821.0,1820.8,6.438]
[1743271043312,10.98319,1821.0,1820.7,6.438]
[1743271043533,8.49149,1821.0,1820.6,7.9666]
[1743271043743,0.2224,1820.9,1820.6,6.439]
[1743271044030,5.71419,1820.9,1820.6,6.439]
[1743271044402,5.49179,1820.9,1820.6,6.439]
[1743271044604,5.49225,1820.8,1820.6,6.439]
[1743271045734,5.4928,1820.6,1820.3,1.5286]
[1743271046029,5.4928,1820.6,1820.3,6.438]
[1743271046199,3.0,1820.6,1820.3,6.438]
[1743271046398,5.4924,1820.7,1820.3,6.438]
[1743271046614,3.0,1820.6,1820.3,6.438]
[1743271046818,5.49271,1820.6,1820.3,6.438]
[1743271047132,5.493,1820.5,1820.3,6.438]
[1743271047703,3.0,1820.6,1820.3,6.438]
[1743271047907,8.49274,1820.6,1820.3,6.438]
[1743271048140,13.98572,1820.6,1820.3,6.438]
[1743271048643,8.49274,1820.6,1820.3,6.438]
[1743271049206,8.49285,1820.6,1820.3,6.438]
[1743271049531,0.2224,1821.1,1820.7,5.49225]
[1743271049706,5.49109,1821.2,1820.8,5.49205]
[1743271049911,3.0,1821.0,1820.7,6.439]
[1743271050135,9.17152767,1821.3,1820.8,7.02058]
[1743271050433,8.49098,1821.2,1820.8,1.5286]
[1743271050634,3.0,1821.2,1820.8,1.5286]
[1743271050933,5.49141,1821.1,1820.8,1.5286]
[1743271051128,5.49149,1821.0,1820.8,1.5286]
[1743271051331,8.49088,1821.2,1820.8,1.5286]
[1743271051520,3.0,1821.2,1820.8,7.81732]
[1743271051709,8.49103,1821.2,1820.8,2.32536]
[1743271051918,5.49119,1821.1,1820.8,2.32536]
[1743271052214,10.98249,1821.1,1820.8,2.32536]
[1743271052621,5.49152,1821.0,1820.7,6.439]
[1743271052934,9.17206767,1821.1,1820.7,6.439]
[1743271053232,5.49161,1821.0,1820.7,6.439]
[1743271053536,10.98328,1821.0,1820.7,6.439]
[1743271054508,5.49161,1821.0,1820.7,6.439]
[1743271054908,10.9833,1821.0,1820.7,6.439]
[1743271055214,10.98316,1821.0,1820.7,6.439]
[1743271055836,5.49148,1821.0,1820.7,6.439]
[1743271056137,9.17065767,1821.6,1821.0,5.49144]
[1743271056339,5.48984,1821.6,1820.9,1.5213]
[1743271056525,5.48984,1821.6,1821.1,5.49115]
[1743271056725,3.0,1821.5,1821.1,17.41919]
[1743271057035,9.39268767,1821.7,1821.2,0.05490267]
[1743271057036,9.17025767,1821.7,1821.2,0.05490267]
[1743271057335,5.48979,1821.6,1821.2,7.01218]
[1743271057642,3.0,1821.5,1821.2,1.5213]
[1743271057833,8.49016,1821.5,1821.2,1.5213]
[1743271058011,13.98043,1821.5,1821.2,1.5213]
[1743271058211,8.49016,1821.5,1821.2,1.5213]
[1743271060008,3.0,1821.5,1821.2,1.57620329]
[1743271060203,3.68087767,1821.7,1821.2,2.37752362]
[1743271060441,0.2224,1821.8,1821.4,5.49016]
[1743271060442,8.7115,1821.8,1821.4,5.49016]
[1743271060640,8.7115,1821.8,1821.3,5.49043]
[1743271061020,8.7115,1821.8,1821.3,10.98082]
[1743271061229,3.2224,1821.8,1821.4,5.49014]
[1743271061568,3.0,1821.8,1821.4,6.64301837]
[1743271061718,3.0,1821.8,1821.4,1.15294837]
[1743271061923,5.48894,1821.9,1821.5,5.48994]
[1743271062125,5.48894,1821.9,1821.6,6.435]
[1743271062451,8.48913,1821.8,1821.6,6.435]
[1743271062843,3.0,1821.8,1821.6,6.435]
[1743271063764,8.48921,1821.8,1821.6,6.435]
[1743271064259,5.48879,1821.9,1821.6,7.0785]
[1743271064442,5.48769,1822.3,1821.8,5.48885]
[1743271064641,3.0,1822.2,1821.8,5.48885]
[1743271064828,5.48817,1822.1,1821.7,1.5213]
[1743271065028,8.48788,1822.2,1821.7,7.01046]
[1743271065248,5.48788,1822.2,1821.7,13.908536]
[1743271065447,5.48788,1822.2,1821.8,5.48904]
[1743271065648,3.0,1822.2,1821.9,5.48862]
[1743271065951,3.0,1822.2,1821.9,10.9772]
[1743271066157,3.0,1822.2,1821.8,5.48891]
[1743271066352,3.0,1822.2,1821.9,5.48877]
[1743271066558,3.0,1822.2,1821.8,6.8798656]
[1743271066725,3.0,1822.2,1821.7,8.419276]
[1743271067050,8.48803,1822.2,1821.8,11.92207]
[1743271068357,8.48803,1822.2,1821.8,6.433]
[1743271068547,13.97614,1822.2,1821.8,6.433]
[1743271068749,5.48834,1822.1,1821.8,6.433]
[1743271068951,5.48855,1822.0,1821.5,7.01124]
[1743271069156,5.48855,1822.0,1821.6,11.92067]
[1743271069332,3.0,1822.0,1821.7,5.48936]
[1743271069830,8.48864,1822.0,1821.6,6.431]
[1743271070257,8.48864,1822.0,1821.7,6.431]
[1743271071063,5.48881,1821.9,1821.7,6.431]
[1743271071361,3.0,1822.0,1821.7,7.0741]
[1743271071530,8.48848,1822.0,1821.7,7.0741]
[1743271071731,3.0,1822.0,1821.7,7.0741]
[1743271071968,5.48889,1821.9,1821.7,7.0741]
[1743271072164,5.48889,1821.9,1821.7,6.431]
[1743271072337,5.48889,1821.9,1821.5,9.201451]
[1743271072537,5.48915,1821.8,1821.5,9.201451]
[1743271072737,5.48956,1821.7,1821.3,5.49055]
[1743271072937,5.48915,1821.8,1821.4,6.43]
[1743271073167,3.68087767,1821.8,1821.4,6.43]
[1743271073339,5.4899,1821.6,1821.2,1.6326]
[1743271073534,5.48999,1821.5,1821.2,8.0626]
[1743271073866,10.98023,1821.5,1821.2,7.78536]
[1743271074066,10.98023,1821.5,1821.0,5.49147]
[1743271074235,10.98023,1821.5,1821.1,6.43]
[1743271074432,5.48999,1821.5,1821.1,11.92116]
[1743271074764,9.17057767,1821.6,1821.2,5.49081]
[1743271074979,5.4897,1821.6,1821.2,5.49081]
[1743271075341,10.97958,1821.6,1821.2,7.232007]
[1743271075545,5.48999,1821.5,1821.2,1.741197]
[1743271077257,5.49059,1821.3,1820.9,7.12426]
[1743271077464,8.49039,1821.4,1821.0,6.429]
[1743271077773,5.49133,1821.1,1820.8,29.057]
[1743271078070,5.49178,1820.9,1820.8,29.057]
[1743271078277,5.49168,1821.0,1820.7,6.429]
[1743271078478,0.55,1821.1,1820.7,7.0719]
[1743271078681,5.4918,1820.9,1820.7,6.429]
[1743271079479,5.49162,1821.0,1820.7,6.429]
[1743271079871,10.98331,1821.0,1820.7,6.429]
[1743271080291,5.49181,1820.9,1820.7,6.429]
[1743271081488,10.98381,1820.9,1820.7,6.429]
[1743271081650,5.49181,1820.9,1820.7,6.429]
[1743271081851,5.49209,1820.8,1820.5,1.6326]
[1743271082079,5.49181,1820.9,1820.5,8.77317]
[1743271082080,5.71419,1820.9,1820.5,8.77317]
[1743271082586,11.20621,1820.9,1820.5,8.77317]
[1743271083989,0.2223,1820.9,1820.5,14.26596]
[1743271084177,14.66409767,1821.0,1820.5,14.26596]
[1743271084686,5.49182,1820.9,1820.5,14.26596]
[1743271085057,5.49182,1820.9,1820.5,8.77317]
[1743271085390,5.4921,1820.8,1820.5,8.77317]
[1743271085889,3.0,1820.9,1820.5,8.77317]
[1743271086058,2.74364262,1821.7,1820.5,8.77317]
[1743271086059,0.2223,1821.5,1821.1,5.49089]
[1743271086260,3.68087767,1821.6,1821.2,0.05490674]
[1743271086461,8.4901,1821.5,1821.1,7.9998]
[1743271086958,3.0,1821.5,1821.1,18.98195]
[1743271087162,14.66044767,1821.6,1821.1,15.388975]
[1743271087363,3.0,1821.5,1821.1,15.388975]
[1743271088057,8.49001,1821.5,1821.1,15.388975]
[1743271088254,5.49039,1821.4,1821.1,7.9998]
[1743271088462,8.49004,1821.5,1821.1,13.49096]
[1743271088775,3.0,1821.5,1821.1,13.49096]
[1743271088983,3.0,1821.5,1821.1,18.98194]
[1743271089163,3.0,1821.5,1821.2,5.49084]
[1743271089492,5.71168,1821.7,1821.2,5.49084]
[1743271089493,3.68087767,1821.8,1821.4,5.49014]
[1743271089889,0.2223,1822.0,1821.5,1.62669659]
[1743271090080,5.48849,1822.0,1821.6,11.91552]
[1743271092298,3.0,1822.1,1821.7,1.5718]
[1743271092492,9.16816767,1822.4,1821.8,5.54393482]
[1743271092705,8.48759,1822.3,1821.9,5.48862]
[1743271093006,10.97539,1822.3,1821.8,5.48905]
[1743271093374,10.97472,1822.4,1821.9,5.4886]
[1743271093574,3.0,1822.3,1821.9,5.4886]
[1743271093965,13.97554,1822.3,1821.8,5.48905]
[1743271094169,8.48774,1822.3,1821.8,5.48905]
[1743271094371,8.48774,1822.3,1821.8,12.232941]
[1743271094707,3.68087767,1822.2,1821.7,7.06116]
[1743271095069,5.48828,1822.1,1821.8,6.423]
[1743271095399,3.68087767,1822.2,1821.8,11.91206]
[1743271095580,3.0,1822.3,1821.9,5.48874]
[1743271095912,3.0,1822.3,1821.9,10.97721]
[1743271096203,3.0,1822.3,1821.9,12.717231]
[1743271096414,6.68087767,1822.2,1821.8,6.423]
[1743271096616,3.0,1822.2,1821.9,5.54353034]
[1743271097318,3.0,1822.2,1821.9,11.03216034]
[1743271097526,3.0,1822.2,1822.0,5.48844]
[1743271097880,3.0,1822.2,1822.0,6.586147]
[1743271098189,3.0,1822.2,1822.1,1.5718]
[1743271098992,3.0,1822.2,1821.9,1.6358]
[1743271099220,3.0,1822.2,1822.0,6.421]
[1743271099719,8.48793,1822.2,1822.0,6.421]
[1743271099923,3.0,1822.0,1821.7,1.5208]
[1743271100238,8.48829,1822.1,1821.7,13.43004]
[1743271100434,3.0,1822.1,1821.7,13.43014]
[1743271100596,8.48821,1822.1,1821.7,7.9408]
[1743271100915,8.48821,1822.1,1821.7,13.43006]
[1743271101093,8.48821,1822.1,1821.7,15.322029]
[1743271101294,3.0,1822.1,1821.9,5.48865]
[1743271101522,3.0,1822.1,1821.7,9.832769]
[1743271101523,3.0,1822.1,1821.8,5.48897]
[1743271101711,3.0,1822.1,1821.9,5.48857]
[1743271102021,2.996364,1822.1,1821.9,5.48876]
[1743271102215,5.70959,1822.4,1822.0,0.548876]
[1743271102532,5.48758,1822.3,1822.0,0.548876]
[1743271102898,5.48758,1822.3,1821.7,15.321849]
[1743271102899,5.48799,1822.2,1821.8,5.48896]
[1743271103093,5.48787,1822.2,1821.8,11.90804]
[1743271103310,5.48787,1822.2,1821.8,17.39695]
[1743271103627,5.48787,1822.2,1821.8,11.90791]
[1743271104005,5.48817,1822.1,1821.8,6.419]
[1743271106911,8.67888878,1822.1,1821.7,1.5208]
[1743271107112,3.19071878,1822.1,1821.8,5.48895]
[1743271107318,3.19071878,1822.1,1821.8,10.97783]
[1743271107533,3.19071878,1822.1,1821.8,5.48888]
[1743271109622,3.19071878,1822.1,1821.7,14.128203]
[1743271109821,8.67899878,1822.1,1821.7,14.128203]
[1743271110768,3.19071878,1821.9,1821.7,7.9378]
[1743271110912,8.67900878,1822.1,1821.7,13.42702]
[1743271111112,3.19071878,1822.1,1821.7,13.42702]
[1743271111345,8.67893878,1822.1,1821.7,13.42716]
[1743271111663,8.67889878,1822.1,1821.7,7.9378]
[1743271111948,8.67889878,1822.1,1821.7,13.42702]
[1743271112146,8.67889878,1822.1,1821.7,15.318685]
[1743271112717,14.16726878,1822.1,1821.7,15.318685]
[1743271113852,10.97723,1822.0,1821.7,7.9378]
[1743271114523,5.48857,1822.0,1821.7,7.9378]
[1743271114719,3.19071878,1821.9,1821.7,7.9378]
[1743271115354,8.67890878,1822.1,1821.7,13.42697]
[1743271115543,3.19071878,1822.1,1821.9,5.48871]
[1743271115987,3.19071878,1822.1,1821.8,5.48902]
[1743271117460,8.67888878,1822.1,1821.7,13.42706]
[1743271117662,8.67888878,1822.1,1821.8,1.342706]
[1743271118655,8.67888878,1822.1,1821.4,5.49024]
[1743271118656,3.19071878,1821.9,1821.4,1.5836]
[1743271118853,10.97845,1821.8,1821.5,6.412]
[1743271119156,5.4897,1821.6,1821.4,1.5836]
[1743271119460,3.19071878,1821.7,1821.3,5.49033]
[1743271119969,8.48919,1821.8,1821.2,7.07444]
[1743271119970,3.19071878,1821.5,1821.2,1.5836]
[1743271120257,3.19071878,1821.5,1821.3,6.412]
[1743271120426,8.68074878,1821.5,1821.2,2.291062]
[1743271120628,3.19071878,1821.3,1821.0,34.54448]
[1743271120942,8.68130878,1821.3,1821.0,29.053]
[1743271121137,8.68130878,1821.3,1821.0,35.464]
[1743271121754,3.19071878,1821.3,1821.0,35.464]
[1743271122128,8.68137878,1821.3,1821.0,35.464]
[1743271122453,5.49098,1821.2,1821.0,35.464]
[1743271122657,8.68137878,1821.3,1821.0,39.0104]
[1743271122853,14.17224878,1821.3,1821.0,35.464]
[1743271123061,8.68137878,1821.3,1821.0,35.464]
[1743271123560,3.19071878,1821.3,1821.0,35.464]
[1743271123764,3.19071878,1821.3,1821.2,5.49088]
[1743271123930,3.19071878,1821.3,1821.1,5.49116]
[1743271124130,3.19071878,1821.3,1821.1,8.00667659]
[1743271124523,3.19071878,1821.3,1821.1,13.49773659]
[1743271124836,3.19071878,1821.3,1821.1,8.00657659]
[1743271125058,3.19071878,1821.4,1821.1,8.00657659]
[1743271125234,3.19071878,1821.4,1821.1,8.00649659]
[1743271125426,3.0,1821.5,1821.2,0.80064966]
[1743271126271,3.0,1821.5,1821.2,6.29141966]
[1743271126972,3.0,1821.5,1821.2,11.78222966]
[1743271127470,3.0,1821.5,1821.2,6.29137966]
[1743271129229,3.0,1821.5,1821.2,11.78205966]
[1743271129435,3.0,1821.5,1821.3,5.49039]
[1743271129773,3.19071878,1821.7,1821.4,5.49016]
[1743271129959,3.19071878,1821.7,1821.5,11.89894]
[1743271131084,3.0,1821.8,1821.6,5.48967]
[1743271131373,3.19071878,1822.1,1821.7,5.48937]
[1743271131577,3.19071878,1822.1,1821.8,5.48903]
[1743271131775,3.0,1822.0,1821.8,5.48903]
[1743271132137,3.0,1822.0,1821.7,5.48937]
[1743271132436,3.0,1822.0,1821.7,6.587271]
[1743271132939,3.19071878,1821.9,1821.6,5.48949]
[1743271133152,3.19071878,1821.9,1821.6,5.5443795]
[1743271133350,3.19071878,1821.9,1821.6,5.54437946]
[1743271133539,3.19071878,1821.9,1821.7,10.97846]
[1743271133739,3.19071878,1821.9,1821.7,5.4892]
[1743271133949,3.0,1822.0,1821.8,5.48877]
[1743271134693,3.0,1822.0,1821.8,10.9777]
[1743271135075,3.19071878,1822.3,1821.9,0.05488556]
[1743271135278,5.48708,1822.5,1821.9,0.05488556]
[1743271135279,3.19071878,1822.5,1822.3,5.48737]
[1743271135589,0.1956,1822.7,1822.5,5.48668]
[1743271135590,3.19071878,1822.7,1822.5,5.48668]
[1743271135764,3.19071878,1822.7,1822.5,6.406]
[1743271136153,3.19071878,1822.7,1822.5,11.89284]
[1743271136559,1.51928117,1822.8,1822.6,7.10001]
[1743271136986,3.19071878,1822.9,1822.6,7.10001]
[1743271137958,3.19071878,1822.9,1822.6,1.6134]
[1743271138159,3.19071878,1822.7,1822.5,6.406]
[1743271139284,8.67723878,1822.7,1822.5,6.406]
[1743271139683,3.19071878,1822.7,1822.5,6.406]
[1743271139862,8.67711878,1822.7,1822.5,6.406]
[1743271140390,10.09343766,1822.7,1822.5,6.406]
[1743271140693,5.48666,1822.6,1822.5,6.406]
[1743271140862,3.19071878,1822.7,1822.5,6.406]
[1743271141293,8.67728878,1822.7,1822.5,6.406]
[1743271141496,14.16385878,1822.7,1822.5,6.406]
[1743271141673,8.67728878,1822.7,1822.5,6.406]
[1743271141869,3.19071878,1822.7,1822.1,5.48799]
[1743271142083,3.19071878,1822.5,1822.2,6.401]
[1743271142487,3.19071878,1822.5,1822.2,11.88886]
[1743271143058,8.67769878,1822.5,1822.2,6.401]
[1743271143481,8.67769878,1822.5,1822.0,7.10172]
[1743271143790,8.67769878,1822.5,1822.1,11.88805]
[1743271143995,5.48742,1822.4,1822.1,6.4]
[1743271144208,10.9749,1822.4,1822.2,6.4]
[1743271144387,5.48742,1822.4,1822.2,6.4]
[1743271144697,5.48742,1822.4,1821.9,29.057]
[1743271144698,5.48793,1822.2,1821.9,29.057]
[1743271144874,3.19071878,1822.1,1822.0,6.4]
[1743271147101,8.67888878,1822.1,1822.0,6.4]
[1743271147617,3.19071878,1822.1,1822.0,6.4]
[1743271149008,3.0,1822.4,1822.0,6.4]
[1743271149208,3.0,1822.4,1822.2,5.48769]
[1743271149578,3.0,1822.4,1822.2,10.97542]
[1743271149775,3.19071878,1822.5,1822.2,10.97545]
[1743271150083,3.19071878,1822.6,1822.3,5.48742]
[1743271150283,3.19071878,1822.7,1822.4,5.48712]
[1743271150495,3.19071878,1822.7,1822.5,6.945712]
[1743271150704,8.67717878,1822.7,1822.5,6.397]
[1743271150905,3.19071878,1822.7,1822.5,6.397]
[1743271152133,5.48666,1822.6,1822.5,6.397]
[1743271152787,8.68226,1822.6,1822.5,6.397]
[1743271152982,5.48735,1822.4,1822.2,6.396]
[1743271153195,8.67845878,1822.3,1821.9,36.17585]
[1743271153415,3.0,1822.2,1822.0,6.396]
[1743271153796,8.67845878,1822.3,1822.0,6.396]
[1743271153797,3.19071878,1822.3,1822.0,6.396]
[1743271153998,3.19071878,1822.3,1822.1,5.48816]
[1743271154206,3.19071878,1822.3,1822.0,11.88437]
[1743271154516,3.19071878,1822.3,1822.0,13.78469]
[1743271155220,8.67803878,1822.4,1822.1,5.48813]
[1743271156752,8.67803878,1822.4,1822.0,13.78469]
[1743271156934,5.48772,1822.3,1822.0,6.396]
[1743271157434,3.19071878,1822.2,1822.0,6.396]
[1743271157854,0.10686464,1822.1,1822.0,11.88443]
[1743271158042,3.19071878,1822.2,1822.0,11.88447]
[1743271158245,0.10686464,1822.1,1822.0,6.396]
[1743271158437,3.19071878,1822.2,1822.0,6.396]
[1743271158756,0.10686464,1822.1,1822.0,6.396]
[1743271159063,3.19071878,1822.2,1822.0,11.88446]
[1743271159264,0.10686464,1822.1,1822.0,11.88446]
[1743271159424,3.19071878,1822.2,1822.0,6.396]
[1743271159628,0.10686464,1822.1,1822.0,6.396]
[1743271159857,3.19071878,1822.2,1822.0,6.396]
[1743271160034,0.10686464,1822.1,1822.0,11.88445]
[1743271160356,3.19071878,1822.2,1822.0,17.37278]
[1743271160534,0.10686464,1822.1,1822.0,11.88433]
[1743271160866,3.19071878,1822.2,1822.0,11.88433]
[1743271161028,0.10686464,1822.1,1822.0,11.88433]
[1743271161357,3.0,1822.3,1822.1,5.48796]
[1743271161559,3.0,1822.3,1822.1,10.97599]
[1743271161754,3.0,1822.3,1822.1,10.97595]
[1743271161936,3.0,1822.3,1822.2,5.48787]
[1743271162778,3.19071878,1822.4,1822.2,10.97556]
[1743271163181,3.19071878,1822.6,1822.5,5.48696]
[1743271163380,3.19071878,1822.6,1822.5,6.391]
[1743271163381,6.19071878,1822.6,1822.5,6.391]
[1743271164470,3.19071878,1822.6,1822.5,6.391]
[1743271165561,3.29805878,1822.6,1822.5,6.391]
[1743271167997,0.10734,1822.6,1822.5,14.64905051]
[1743271168165,0.10734,1822.6,1822.5,14.594183]
[1743271168370,3.0,1823.2,1822.9,7.01406]
[1743271168571,14.35384878,1823.3,1823.0,6.389]
[1743271168765,0.10734,1823.1,1823.0,6.389]
[1743271168977,5.48487,1823.2,1823.0,6.389]
[1743271169270,5.48675,1822.6,1822.1,1.5284]
[1743271169481,3.19071878,1822.4,1822.2,6.388]
[1743271169800,0.10734,1822.3,1822.2,6.388]
[1743271170001,0.10734,1822.3,1822.2,11.87587]
[1743271170303,0.10734,1822.3,1822.2,6.388]
[1743271170469,3.19071878,1822.4,1822.2,6.388]
[1743271170662,0.10734,1822.3,1822.2,6.388]
[1743271170867,5.48757,1822.3,1822.2,6.388]
[1743271171099,5.59491,1822.3,1822.2,6.388]
[1743271171285,0.10734,1822.3,1822.2,6.388]
[1743271171489,3.0,1822.4,1822.2,7.0268]
[1743271171690,3.0,1822.4,1822.3,6.387]
[1743271171890,8.48726,1822.4,1822.3,6.387]
[1743271172898,3.0,1822.4,1822.3,6.387]
[1743271174782,8.48726,1822.4,1822.3,6.387]
[1743271174981,3.0,1822.4,1822.3,6.387]
[1743271175381,8.48726,1822.4,1822.3,6.387]
[1743271175902,3.0,1822.4,1822.3,6.387]
[1743271176906,8.48726,1822.4,1822.3,6.387]
[1743271177804,3.0,1822.4,1822.3,6.387]
[1743271178709,8.48726,1822.4,1822.3,6.387]
[1743271179096,5.48758,1822.3,1822.0,1.88]
[1743271179301,3.19071878,1822.2,1822.1,6.384]